[Event "Live Chess"]
[Site "Chess.com"]
[Date "2023.05.20"]
[Round "-"]
[White "LodeshChess"]
[Black "Tema1107"]
[Result "0-1"]
[WhiteElo "879"]
[BlackElo "1964"]
[TimeControl "300"]
[EndTime "9:49:30 PDT"]
[Termination "Tema1107 won by resignation"]

1. e4 {[%clk 0:04:59.5]} 1... c5 {[%clk 0:04:59]} 2. Nf3 {[%clk 0:04:58.7]} 2...
d6 {[%clk 0:04:57.4]} 3. Bb5+ {[%clk 0:04:52.5]} 3... Bd7 {[%clk 0:04:54.8]} 4.
Nc3 {[%clk 0:04:50.5]} 4... Bxb5 {[%clk 0:04:50.4]} 5. Nxb5 {[%clk 0:04:49.2]}
5... a6 {[%clk 0:04:50.3]} 6. Nc3 {[%clk 0:04:46.7]} 6... Nf6 {[%clk 0:04:47.4]}
7. O-O {[%clk 0:04:45.1]} 7... g6 {[%clk 0:04:39.9]} 8. d3 {[%clk 0:04:43.4]}
8... Bg7 {[%clk 0:04:37.9]} 9. Nd5 {[%clk 0:04:43]} 9... Nxd5 {[%clk 0:04:34.5]}
10. exd5 {[%clk 0:04:42.2]} 10... O-O {[%clk 0:04:34.4]} 11. c4 {[%clk
0:04:40.9]} 11... Nd7 {[%clk 0:04:31.4]} 12. Rb1 {[%clk 0:04:37.4]} 12... b5
{[%clk 0:04:24]} 13. Be3 {[%clk 0:04:33.6]} 13... Qa5 {[%clk 0:04:13.1]} 14. a3
{[%clk 0:04:24]} 14... b4 {[%clk 0:04:04.5]} 15. Bd2 {[%clk 0:04:21.8]} 15...
Qb6 {[%clk 0:03:28.8]} 16. axb4 {[%clk 0:04:16.7]} 16... cxb4 {[%clk 0:03:28.7]}
17. Qb3 {[%clk 0:04:12.8]} 17... Nc5 {[%clk 0:03:26.9]} 18. Qc2 {[%clk
0:04:08.3]} 18... b3 {[%clk 0:03:16.5]} 19. Qc3 {[%clk 0:03:54.6]} 19... Bxc3
{[%clk 0:03:13.8]} 0-1

[Event "Live Chess"]
[Site "Chess.com"]
[Date "2023.05.20"]
[Round "-"]
[White "NatashaRegan"]
[Black "Ferrarifan27"]
[Result "1-0"]
[WhiteElo "1864"]
[BlackElo "2078"]
[TimeControl "300"]
[EndTime "9:49:31 PDT"]
[Termination "NatashaRegan won by resignation"]

1. c4 {[%clk 0:04:55.4]} 1... Nf6 {[%clk 0:04:58.5]} 2. d4 {[%clk 0:04:53.5]}
2... e6 {[%clk 0:04:56.8]} 3. Nc3 {[%clk 0:04:51.1]} 3... Bb4 {[%clk 0:04:55.7]}
4. Nf3 {[%clk 0:04:48.2]} 4... b6 {[%clk 0:04:54.1]} 5. g3 {[%clk 0:04:46.2]}
5... Bb7 {[%clk 0:04:52.9]} 6. Bg2 {[%clk 0:04:45.3]} 6... O-O {[%clk 0:04:52]}
7. O-O {[%clk 0:04:44.4]} 7... Bxc3 {[%clk 0:04:50.1]} 8. bxc3 {[%clk
0:04:42.7]} 8... d6 {[%clk 0:04:49.7]} 9. Bg5 {[%clk 0:04:35.7]} 9... h6 {[%clk
0:04:47]} 10. Bc1 {[%clk 0:04:28.4]} 10... Nbd7 {[%clk 0:04:45.9]} 11. a4 {[%clk
0:04:25.1]} 11... a5 {[%clk 0:04:43.8]} 12. Rb1 {[%clk 0:04:21.3]} 12... Re8
{[%clk 0:04:40.2]} 13. Ba3 {[%clk 0:04:16.5]} 13... Rb8 {[%clk 0:04:31]} 14. c5
{[%clk 0:04:14.5]} 14... dxc5 {[%clk 0:04:29.7]} 15. dxc5 {[%clk 0:04:10.7]}
15... Nxc5 {[%clk 0:04:27.6]} 16. Bxc5 {[%clk 0:04:07.6]} 16... bxc5 {[%clk
0:04:26.3]} 17. Rb5 {[%clk 0:03:49.2]} 17... Qxd1 {[%clk 0:04:19]} 18. Rxd1
{[%clk 0:03:46.2]} 18... Bc6 {[%clk 0:04:17.5]} 19. Rxa5 {[%clk 0:03:42.8]}
19... Ra8 {[%clk 0:04:10.2]} 20. Rxc5 {[%clk 0:03:35.8]} 20... Bxa4 {[%clk
0:04:08.9]} 21. Rb1 {[%clk 0:03:25.1]} 21... c6 {[%clk 0:03:57.9]} 22. Ne5
{[%clk 0:03:21.4]} 22... Rab8 {[%clk 0:03:45.3]} 23. Rxb8 {[%clk 0:03:14.5]}
23... Rxb8 {[%clk 0:03:45.2]} 24. Bxc6 {[%clk 0:03:11.4]} 24... Rb1+ {[%clk
0:03:28.7]} 25. Kg2 {[%clk 0:03:08.5]} 25... Bd1 {[%clk 0:03:27]} 26. Bf3 {[%clk
0:03:00.7]} 26... Rc1 {[%clk 0:03:14.1]} 27. Rc8+ {[%clk 0:02:57.3]} 27... Kh7
{[%clk 0:03:12.3]} 28. Nxf7 {[%clk 0:02:55.3]} 28... g5 {[%clk 0:03:01.8]} 29.
Ne5 {[%clk 0:02:52.1]} 29... h5 {[%clk 0:02:54.1]} 30. h3 {[%clk 0:02:47.5]}
30... Kg7 {[%clk 0:02:39.8]} 31. c4 {[%clk 0:02:44.8]} 31... Bb3 {[%clk
0:02:33.4]} 32. c5 {[%clk 0:02:42.7]} 32... Bd5 {[%clk 0:02:18.3]} 33. Bxd5
{[%clk 0:02:35.7]} 33... Nxd5 {[%clk 0:02:18.2]} 34. h4 {[%clk 0:02:27.9]} 34...
gxh4 {[%clk 0:02:16]} 35. gxh4 {[%clk 0:02:26.4]} 35... Rc2 {[%clk 0:02:15.3]}
36. Kf3 {[%clk 0:02:23.7]} 36... Kf6 {[%clk 0:02:13.4]} 37. Nd3 {[%clk
0:02:19.3]} 37... e5 {[%clk 0:02:06.2]} 38. e3 {[%clk 0:02:16.1]} 38... Rc4
{[%clk 0:01:58.1]} 39. e4 {[%clk 0:02:10.2]} 39... Ne7 {[%clk 0:01:53.6]} 40.
Rf8+ {[%clk 0:02:06.4]} 40... Kg7 {[%clk 0:01:51.5]} 41. Rf7+ {[%clk 0:02:01.7]}
41... Kxf7 {[%clk 0:01:45]} 42. Nxe5+ {[%clk 0:02:00.7]} 42... Ke6 {[%clk
0:01:44.3]} 43. Nxc4 {[%clk 0:01:59.6]} 43... Nc6 {[%clk 0:01:41.3]} 44. Kf4
{[%clk 0:01:57.5]} 44... Kf6 {[%clk 0:01:36.6]} 45. e5+ {[%clk 0:01:55.3]} 45...
Ke6 {[%clk 0:01:35.7]} 46. Ke4 {[%clk 0:01:53.5]} 1-0

[Event "Live Chess"]
[Site "Chess.com"]
[Date "2023.05.20"]
[Round "-"]
[White "ACx04"]
[Black "Pandreq"]
[Result "0-1"]
[WhiteElo "433"]
[BlackElo "1257"]
[TimeControl "300"]
[EndTime "9:49:31 PDT"]
[Termination "Pandreq won by checkmate"]

1. e4 {[%clk 0:04:56.1]} 1... Nf6 {[%clk 0:04:58.5]} 2. Nc3 {[%clk 0:04:54.2]}
2... Nc6 {[%clk 0:04:57.2]} 3. Nf3 {[%clk 0:04:52.4]} 3... d6 {[%clk 0:04:55.9]}
4. Bc4 {[%clk 0:04:51]} 4... h6 {[%clk 0:04:53.7]} 5. h3 {[%clk 0:04:48.6]} 5...
e5 {[%clk 0:04:51]} 6. O-O {[%clk 0:04:46.9]} 6... Qe7 {[%clk 0:04:47]} 7. d3
{[%clk 0:04:43.2]} 7... Be6 {[%clk 0:04:45.1]} 8. g4 {[%clk 0:04:40.5]} 8...
Bxc4 {[%clk 0:04:43.7]} 9. dxc4 {[%clk 0:04:39.1]} 9... O-O-O {[%clk 0:04:36]}
10. Nb5 {[%clk 0:04:35.5]} 10... a6 {[%clk 0:04:32.5]} 11. Na7+ {[%clk
0:04:33.9]} 11... Nxa7 {[%clk 0:04:31.4]} 12. Be3 {[%clk 0:04:30.3]} 12... Nc6
{[%clk 0:04:28.7]} 13. a3 {[%clk 0:04:21.4]} 13... Nxe4 {[%clk 0:04:27.2]} 14.
Qd3 {[%clk 0:04:11.3]} 14... Nf6 {[%clk 0:04:16.7]} 15. c3 {[%clk 0:04:02.1]}
15... e4 {[%clk 0:04:13]} 16. Qe2 {[%clk 0:03:54.4]} 16... exf3 {[%clk
0:04:11.5]} 17. Qxf3 {[%clk 0:03:53.2]} 17... Ne5 {[%clk 0:04:09.1]} 18. Qh1
{[%clk 0:03:46.6]} 18... Nxc4 {[%clk 0:04:06.2]} 19. Ba7 {[%clk 0:03:39.6]}
19... Qe4 {[%clk 0:03:40.5]} 20. f3 {[%clk 0:03:34.6]} 20... Qe3+ {[%clk
0:03:33.5]} 21. Bxe3 {[%clk 0:03:32.5]} 21... Nxe3 {[%clk 0:03:32.1]} 22. Rfe1
{[%clk 0:03:31.1]} 22... Nc2 {[%clk 0:03:28.1]} 23. Kg2 {[%clk 0:03:24.3]} 23...
Nxa1 {[%clk 0:03:23.4]} 24. Rxa1 {[%clk 0:03:22.5]} 24... d5 {[%clk 0:03:18.2]}
25. Rc1 {[%clk 0:03:02]} 25... Bc5 {[%clk 0:03:12.7]} 26. c4 {[%clk 0:02:54.8]}
26... d4 {[%clk 0:02:59.6]} 27. b4 {[%clk 0:02:49.7]} 27... Bd6 {[%clk 0:02:53]}
28. c5 {[%clk 0:02:45.7]} 28... Bf4 {[%clk 0:02:51.1]} 29. Rd1 {[%clk
0:02:43.4]} 29... d3 {[%clk 0:02:45.8]} 30. Qf1 {[%clk 0:02:36.2]} 30... d2
{[%clk 0:02:44]} 31. b5 {[%clk 0:02:29.5]} 31... axb5 {[%clk 0:02:38.4]} 32.
Qxb5 {[%clk 0:02:27.8]} 32... Nd5 {[%clk 0:02:35.5]} 33. Rxd2 {[%clk 0:02:23.2]}
33... Bxd2 {[%clk 0:02:31.2]} 34. c6 {[%clk 0:02:18.6]} 34... bxc6 {[%clk
0:02:08.8]} 35. Qxc6 {[%clk 0:02:16.9]} 35... Ne3+ {[%clk 0:02:00.2]} 36. Kg3
{[%clk 0:02:14.8]} 36... Nf1+ {[%clk 0:01:54.5]} 37. Kh4 {[%clk 0:02:12.5]}
37... g5+ {[%clk 0:01:52]} 38. Kh5 {[%clk 0:02:10.5]} 38... Ng3# {[%clk
0:01:50.6]} 0-1

[Event "Live Chess"]
[Site "Chess.com"]
[Date "2023.05.20"]
[Round "-"]
[White "MartaMost"]
[Black "alexlines8"]
[Result "1-0"]
[WhiteElo "1220"]
[BlackElo "1254"]
[TimeControl "300"]
[EndTime "9:49:38 PDT"]
[Termination "MartaMost won by resignation"]

1. e4 {[%clk 0:04:57.8]} 1... c6 {[%clk 0:04:58.6]} 2. Bc4 {[%clk 0:04:54.9]}
2... d5 {[%clk 0:04:57.5]} 3. exd5 {[%clk 0:04:47]} 3... cxd5 {[%clk 0:04:57.4]}
4. Bb5+ {[%clk 0:04:44]} 4... Nc6 {[%clk 0:04:55]} 5. Bxc6+ {[%clk 0:04:42.8]}
5... bxc6 {[%clk 0:04:53.6]} 6. Qf3 {[%clk 0:04:31.7]} 6... Nf6 {[%clk
0:04:42.6]} 7. c4 {[%clk 0:04:30]} 7... e5 {[%clk 0:04:38.1]} 8. cxd5 {[%clk
0:04:25]} 8... cxd5 {[%clk 0:04:37.1]} 9. Qb3 {[%clk 0:04:07.2]} 9... Be6 {[%clk
0:04:19.1]} 10. Qc3 {[%clk 0:03:54.2]} 10... Bd6 {[%clk 0:04:11.2]} 11. Qc6+
{[%clk 0:03:49.2]} 11... Kf8 {[%clk 0:04:00.4]} 12. d3 {[%clk 0:03:39.7]} 12...
d4 {[%clk 0:03:50.4]} 13. Bg5 {[%clk 0:03:37.6]} 13... Bb4+ {[%clk 0:03:39.1]}
14. Nd2 {[%clk 0:03:20.5]} 14... Rc8 {[%clk 0:03:29.3]} 15. Qa6 {[%clk
0:03:08.4]} 15... Rc2 {[%clk 0:03:10]} 16. Bxf6 {[%clk 0:02:58.9]} 16... Bxd2+
{[%clk 0:02:32.4]} 17. Kd1 {[%clk 0:02:53.2]} 17... Rc1+ {[%clk 0:02:22]} 18.
Rxc1 {[%clk 0:02:50.4]} 18... Qxf6 {[%clk 0:02:16.8]} 1-0

[Event "Live Chess"]
[Site "Chess.com"]
[Date "2023.05.20"]
[Round "-"]
[White "thrithik"]
[Black "BillW-GrangerIN"]
[Result "1-0"]
[WhiteElo "484"]
[BlackElo "153"]
[TimeControl "300"]
[EndTime "9:49:40 PDT"]
[Termination "thrithik won by resignation"]

1. b4 {[%clk 0:04:56]} 1... e5 {[%clk 0:04:55.6]} 2. d3 {[%clk 0:04:54.6]} 2...
d5 {[%clk 0:04:49.2]} 3. Nc3 {[%clk 0:04:54.2]} 3... Nc6 {[%clk 0:04:43.1]} 4.
Bd2 {[%clk 0:04:53.8]} 4... Nf6 {[%clk 0:04:39.8]} 5. Bf4 {[%clk 0:04:53.2]}
5... Bf5 {[%clk 0:04:34.5]} 6. g3 {[%clk 0:04:52.8]} 6... Bxb4 {[%clk
0:04:24.1]} 7. d4 {[%clk 0:04:52]} 7... Bxc3+ {[%clk 0:04:17.2]} 8. Qd2 {[%clk
0:04:40]} 8... Bxa1 {[%clk 0:04:13.5]} 9. dxe5 {[%clk 0:04:33.6]} 9... Ne4
{[%clk 0:03:55.4]} 10. Qe3 {[%clk 0:04:24.7]} 10... O-O {[%clk 0:03:39.7]} 11.
e6 {[%clk 0:04:24]} 11... Qe8 {[%clk 0:03:10.8]} 12. exf7+ {[%clk 0:04:22.6]}
12... Qxf7 {[%clk 0:03:04.9]} 13. Nf3 {[%clk 0:04:06]} 13... Bc3+ {[%clk
0:03:00.9]} 14. Kd1 {[%clk 0:04:00]} 14... Nb4 {[%clk 0:02:24.6]} 15. Ne5 {[%clk
0:03:55.4]} 15... Qh5 {[%clk 0:02:10.4]} 16. Nd7 {[%clk 0:03:52.6]} 16... Rfe8
{[%clk 0:02:01.3]} 17. Bxc7 {[%clk 0:03:43.2]} 17... Bxd7 {[%clk 0:01:39.9]} 18.
Qc5 {[%clk 0:03:33.4]} 18... Qxe2+ {[%clk 0:01:04.6]} 19. Bxe2 {[%clk
0:03:29.8]} 19... Nxf2+ {[%clk 0:00:46.7]} 20. Qxf2 {[%clk 0:03:24.9]} 1-0

[Event "Live Chess"]
[Site "Chess.com"]
[Date "2023.05.20"]
[Round "-"]
[White "MrDodgy"]
[Black "Alan_Richardson"]
[Result "1-0"]
[WhiteElo "2325"]
[BlackElo "1658"]
[TimeControl "300"]
[EndTime "9:49:41 PDT"]
[Termination "MrDodgy won by checkmate"]

1. e4 {[%clk 0:04:58.7]} 1... c5 {[%clk 0:04:57.7]} 2. Nf3 {[%clk 0:04:56.5]}
2... Nc6 {[%clk 0:04:56.4]} 3. Bb5 {[%clk 0:04:54.6]} 3... Qc7 {[%clk
0:04:51.8]} 4. O-O {[%clk 0:04:51.5]} 4... a6 {[%clk 0:04:44.7]} 5. Bd3 {[%clk
0:04:48.5]} 5... d6 {[%clk 0:04:40.2]} 6. c3 {[%clk 0:04:46.3]} 6... Bg4 {[%clk
0:04:27.5]} 7. Be2 {[%clk 0:04:33.2]} 7... Nf6 {[%clk 0:04:24.5]} 8. d3 {[%clk
0:04:29.7]} 8... e6 {[%clk 0:04:21.9]} 9. Be3 {[%clk 0:04:27.7]} 9... Be7 {[%clk
0:04:19.8]} 10. Nbd2 {[%clk 0:04:27.2]} 10... O-O {[%clk 0:04:16.9]} 11. h3
{[%clk 0:04:26.7]} 11... Bh5 {[%clk 0:04:11.5]} 12. a4 {[%clk 0:04:23.1]} 12...
b6 {[%clk 0:04:05.5]} 13. g4 {[%clk 0:04:17.5]} 13... Bg6 {[%clk 0:04:03.3]} 14.
Nh2 {[%clk 0:04:16.4]} 14... e5 {[%clk 0:03:49.7]} 15. h4 {[%clk 0:04:01.2]}
15... h6 {[%clk 0:03:42]} 16. h5 {[%clk 0:03:59.4]} 16... Bh7 {[%clk 0:03:40]}
17. Ndf3 {[%clk 0:03:53.1]} 17... d5 {[%clk 0:03:34.3]} 18. exd5 {[%clk
0:03:13.1]} 18... Nxd5 {[%clk 0:03:31.9]} 19. Kh1 {[%clk 0:03:11.6]} 19... Rfd8
{[%clk 0:03:19.1]} 20. Rg1 {[%clk 0:03:08.7]} 20... e4 {[%clk 0:03:10.4]} 21.
Ne1 {[%clk 0:02:56.4]} 21... Nxe3 {[%clk 0:02:56.5]} 22. fxe3 {[%clk 0:02:52.5]}
22... Bd6 {[%clk 0:02:43.3]} 23. Nf1 {[%clk 0:02:42.5]} 23... exd3 {[%clk
0:02:27.8]} 24. Bxd3 {[%clk 0:02:33.3]} 24... Be7 {[%clk 0:02:14.2]} 25. Bxh7+
{[%clk 0:02:28.7]} 25... Kxh7 {[%clk 0:02:13.2]} 26. Qf3 {[%clk 0:02:24.9]}
26... Bg5 {[%clk 0:02:07.8]} 27. Ng3 {[%clk 0:02:14.9]} 27... Ne5 {[%clk
0:02:05.7]} 28. Qe4+ {[%clk 0:02:12.2]} 28... Kh8 {[%clk 0:01:59.8]} 29. Nf3
{[%clk 0:02:10.2]} 29... Nxf3 {[%clk 0:01:48.8]} 30. Qxf3 {[%clk 0:02:05.7]}
30... Rd3 {[%clk 0:01:39.8]} 31. Qxa8+ {[%clk 0:01:57.2]} 31... Rd8 {[%clk
0:01:30.6]} 32. Qf3 {[%clk 0:01:52.6]} 32... Rd2 {[%clk 0:01:24.9]} 33. Rg2
{[%clk 0:01:41.5]} 33... Rd3 {[%clk 0:01:20.5]} 34. Nf5 {[%clk 0:01:23.7]} 34...
g6 {[%clk 0:01:11.4]} 35. hxg6 {[%clk 0:01:20.9]} 35... fxg6 {[%clk 0:01:09.7]}
36. Qa8+ {[%clk 0:01:19.9]} 36... Kh7 {[%clk 0:01:06.6]} 37. Qe4 {[%clk
0:01:16.5]} 37... Rd7 {[%clk 0:00:58.1]} 38. Ng3 {[%clk 0:00:58.4]} 38... Re7
{[%clk 0:00:55.7]} 39. Qc4 {[%clk 0:00:54.3]} 39... Rxe3 {[%clk 0:00:52]} 40.
Rf1 {[%clk 0:00:53.6]} 40... Re7 {[%clk 0:00:46.5]} 41. Ne4 {[%clk 0:00:47.8]}
41... Be3 {[%clk 0:00:37]} 42. Nf6+ {[%clk 0:00:45.9]} 42... Kg7 {[%clk
0:00:35.9]} 43. Qg8# {[%clk 0:00:45.4]} 1-0

[Event "Live Chess"]
[Site "Chess.com"]
[Date "2023.05.20"]
[Round "-"]
[White "HD_IN4k"]
[Black "Rusty_Bridges"]
[Result "0-1"]
[WhiteElo "297"]
[BlackElo "1384"]
[TimeControl "300"]
[EndTime "9:49:42 PDT"]
[Termination "Rusty_Bridges won by checkmate"]

1. d4 {[%clk 0:04:54.3]} 1... d5 {[%clk 0:04:57.5]} 2. c4 {[%clk 0:04:52.9]}
2... e6 {[%clk 0:04:54.7]} 3. Nc3 {[%clk 0:04:46.2]} 3... Bb4 {[%clk 0:04:54]}
4. Bd2 {[%clk 0:04:35.9]} 4... Nf6 {[%clk 0:04:49.2]} 5. cxd5 {[%clk 0:04:32.4]}
5... Nxd5 {[%clk 0:04:43.8]} 6. Nxd5 {[%clk 0:04:29.5]} 6... Bxd2+ {[%clk
0:04:42.5]} 7. Qxd2 {[%clk 0:04:25.2]} 7... Qxd5 {[%clk 0:04:41.5]} 8. f3 {[%clk
0:04:12.6]} 8... O-O {[%clk 0:04:37.4]} 9. e4 {[%clk 0:04:10.6]} 9... Qd6 {[%clk
0:04:29.9]} 10. e5 {[%clk 0:04:05.2]} 10... Qd5 {[%clk 0:04:24]} 11. Ne2 {[%clk
0:04:00.3]} 11... Nc6 {[%clk 0:04:20.3]} 12. Nf4 {[%clk 0:03:58.7]} 12... Qd8
{[%clk 0:04:18.3]} 13. g4 {[%clk 0:03:52.9]} 13... Qxd4 {[%clk 0:04:15.4]} 14.
Qxd4 {[%clk 0:03:50.6]} 14... Nxd4 {[%clk 0:04:14.3]} 15. Bc4 {[%clk 0:03:43]}
15... Nc2+ {[%clk 0:04:12.5]} 16. Kf2 {[%clk 0:03:35.8]} 16... Nxa1 {[%clk
0:04:12.4]} 17. Rxa1 {[%clk 0:03:34.3]} 17... Bd7 {[%clk 0:04:10.5]} 18. Rd1
{[%clk 0:03:33.5]} 18... Bc6 {[%clk 0:04:05.6]} 19. g5 {[%clk 0:03:23.8]} 19...
Rfd8 {[%clk 0:04:03.9]} 20. h4 {[%clk 0:03:22.8]} 20... Rxd1 {[%clk 0:04:01.9]}
21. Ke2 {[%clk 0:03:20.9]} 21... Rad8 {[%clk 0:03:59.5]} 22. h5 {[%clk
0:03:18.2]} 22... a6 {[%clk 0:03:56]} 23. h6 {[%clk 0:03:17.4]} 23... gxh6
{[%clk 0:03:53.3]} 24. gxh6 {[%clk 0:03:15.5]} 24... Bb5 {[%clk 0:03:52.3]} 25.
Nh5 {[%clk 0:03:11.7]} 25... Bxc4+ {[%clk 0:03:45.1]} 26. Ke3 {[%clk 0:03:08.5]}
26... R8d3+ {[%clk 0:03:39.8]} 27. Kf4 {[%clk 0:03:05.6]} 27... Rd4+ {[%clk
0:03:38.8]} 28. Ke3 {[%clk 0:03:02.3]} 28... R1d3+ {[%clk 0:03:36.4]} 29. Ke2
{[%clk 0:03:00.6]} 29... Rd2+ {[%clk 0:03:25.4]} 30. Ke1 {[%clk 0:02:53.7]}
30... Rxb2 {[%clk 0:03:22.8]} 31. Nf6+ {[%clk 0:02:50.6]} 31... Kf8 {[%clk
0:03:21]} 32. Nxh7+ {[%clk 0:02:48.5]} 32... Ke7 {[%clk 0:03:20.2]} 33. Nf6
{[%clk 0:02:45]} 33... Rh4 {[%clk 0:03:15]} 34. h7 {[%clk 0:02:33.4]} 34... Rh1#
{[%clk 0:03:13.3]} 0-1

[Event "Live Chess"]
[Site "Chess.com"]
[Date "2023.05.20"]
[Round "-"]
[White "cedarsmaster"]
[Black "nigelst"]
[Result "0-1"]
[WhiteElo "1736"]
[BlackElo "1858"]
[TimeControl "300"]
[EndTime "9:49:44 PDT"]
[Termination "nigelst won by checkmate"]

1. e4 {[%clk 0:04:58.3]} 1... c6 {[%clk 0:04:58.6]} 2. Nc3 {[%clk 0:04:53.6]}
2... d5 {[%clk 0:04:57.2]} 3. d3 {[%clk 0:04:52.2]} 3... e5 {[%clk 0:04:52.8]}
4. Nf3 {[%clk 0:04:48.6]} 4... Bg4 {[%clk 0:04:45.5]} 5. Be2 {[%clk 0:04:44]}
5... Nd7 {[%clk 0:04:41]} 6. h3 {[%clk 0:04:41.6]} 6... Bxf3 {[%clk 0:04:39.2]}
7. Bxf3 {[%clk 0:04:39.3]} 7... Ngf6 {[%clk 0:04:37.9]} 8. O-O {[%clk
0:04:12.4]} 8... d4 {[%clk 0:04:36.2]} 9. Ne2 {[%clk 0:04:06.5]} 9... Be7 {[%clk
0:04:33.5]} 10. g3 {[%clk 0:04:01.8]} 10... O-O {[%clk 0:04:31.5]} 11. Bg2
{[%clk 0:03:59.7]} 11... c5 {[%clk 0:04:29]} 12. c4 {[%clk 0:03:52.4]} 12... Rb8
{[%clk 0:04:21.5]} 13. f4 {[%clk 0:03:38.9]} 13... Ne8 {[%clk 0:04:16.3]} 14.
fxe5 {[%clk 0:03:10.4]} 14... Nxe5 {[%clk 0:04:13.5]} 15. Nf4 {[%clk 0:02:59.4]}
15... Nc7 {[%clk 0:04:03.4]} 16. Kh2 {[%clk 0:02:56.2]} 16... Bf6 {[%clk
0:04:02]} 17. Nh5 {[%clk 0:02:07.1]} 17... Bg5 {[%clk 0:03:47.1]} 18. Bf4 {[%clk
0:01:51.8]} 18... Bxf4 {[%clk 0:03:38.3]} 19. gxf4 {[%clk 0:01:43.6]} 19... Ng6
{[%clk 0:03:27.5]} 20. Qg4 {[%clk 0:01:25.9]} 20... Qh4 {[%clk 0:03:15.1]} 21.
e5 {[%clk 0:01:11.5]} 21... Qxg4 {[%clk 0:03:12.9]} 22. hxg4 {[%clk 0:01:09.7]}
22... Nh4 {[%clk 0:03:01.6]} 23. Be4 {[%clk 0:01:03.5]} 23... Ng6 {[%clk
0:02:54.3]} 24. Kg3 {[%clk 0:00:59.6]} 24... b5 {[%clk 0:02:53]} 25. b3 {[%clk
0:00:53.2]} 25... bxc4 {[%clk 0:02:51.6]} 26. dxc4 {[%clk 0:00:51.9]} 26... Rbd8
{[%clk 0:02:43.3]} 27. Bd3 {[%clk 0:00:49.4]} 27... Rde8 {[%clk 0:02:28.2]} 28.
Rae1 {[%clk 0:00:47.4]} 28... Na6 {[%clk 0:02:20.6]} 29. a3 {[%clk 0:00:44]}
29... Rb8 {[%clk 0:02:06.3]} 30. Rb1 {[%clk 0:00:39.2]} 30... Rb6 {[%clk
0:01:58.4]} 31. Kf3 {[%clk 0:00:36]} 31... Rfb8 {[%clk 0:01:54.9]} 32. Bc2
{[%clk 0:00:24.8]} 32... d3 {[%clk 0:01:52.5]} 33. Bd1 {[%clk 0:00:23.3]} 33...
Rd8 {[%clk 0:01:42.4]} 34. Ng3 {[%clk 0:00:18.4]} 34... Nc7 {[%clk 0:01:37.2]}
35. Nf5 {[%clk 0:00:14.2]} 35... Ne6 {[%clk 0:01:32.6]} 36. Ne3 {[%clk
0:00:09.2]} 36... Nd4+ {[%clk 0:01:31.2]} 37. Ke4 {[%clk 0:00:07.1]} 37... Nc2
{[%clk 0:01:20.5]} 38. f5 {[%clk 0:00:04.5]} 38... Nh4 {[%clk 0:01:10.2]} 39. f6
{[%clk 0:00:02]} 39... Rd4# {[%clk 0:01:08.8]} 0-1

[Event "Live Chess"]
[Site "Chess.com"]
[Date "2023.05.20"]
[Round "-"]
[White "Misha145Chess"]
[Black "MaximKhimchenko"]
[Result "0-1"]
[WhiteElo "584"]
[BlackElo "1375"]
[TimeControl "300"]
[EndTime "9:49:44 PDT"]
[Termination "MaximKhimchenko won by checkmate"]

1. d4 {[%clk 0:04:56.6]} 1... e5 {[%clk 0:04:59.9]} 2. dxe5 {[%clk 0:04:54.6]}
2... Nc6 {[%clk 0:04:58.8]} 3. Nf3 {[%clk 0:04:52.6]} 3... Qe7 {[%clk
0:04:58.2]} 4. Bf4 {[%clk 0:04:50]} 4... d6 {[%clk 0:04:56.9]} 5. Bg5 {[%clk
0:04:48.4]} 5... f6 {[%clk 0:04:55.2]} 6. exf6 {[%clk 0:04:47]} 6... Nxf6 {[%clk
0:04:55]} 7. Nc3 {[%clk 0:04:41.8]} 7... Bg4 {[%clk 0:04:53.4]} 8. Nd5 {[%clk
0:04:32.8]} 8... Qd7 {[%clk 0:04:46.1]} 9. Nxf6+ {[%clk 0:04:27.3]} 9... gxf6
{[%clk 0:04:22.8]} 10. Bxf6 {[%clk 0:04:27.2]} 10... Rg8 {[%clk 0:04:21.6]} 11.
h3 {[%clk 0:04:23]} 11... Be6 {[%clk 0:04:19.4]} 12. Nd4 {[%clk 0:04:17.9]}
12... Nxd4 {[%clk 0:04:11.6]} 13. Qxd4 {[%clk 0:04:16.3]} 13... Be7 {[%clk
0:04:10.5]} 14. Bxe7 {[%clk 0:04:12.1]} 14... Qxe7 {[%clk 0:04:10.4]} 15. O-O-O
{[%clk 0:04:10.8]} 15... O-O-O {[%clk 0:04:08.7]} 16. Qxa7 {[%clk 0:04:09.1]}
16... Kd7 {[%clk 0:04:07.2]} 17. Qa4+ {[%clk 0:04:06.8]} 17... c6 {[%clk
0:04:05.9]} 18. b4 {[%clk 0:03:53.9]} 18... Ra8 {[%clk 0:03:09.7]} 19. Qxa8
{[%clk 0:03:20.6]} 19... Rxa8 {[%clk 0:02:27.3]} 20. g4 {[%clk 0:02:58]} 20...
Rxa2 {[%clk 0:02:18.8]} 21. Rg1 {[%clk 0:02:51.4]} 21... Qf6 {[%clk 0:02:12.1]}
22. Kd2 {[%clk 0:02:40.9]} 22... Bb3 {[%clk 0:02:06.3]} 23. g5 {[%clk 0:02:30]}
23... Qd4+ {[%clk 0:01:52.6]} 24. Ke1 {[%clk 0:02:26.9]} 24... Qc3+ {[%clk
0:01:51.7]} 25. Rd2 {[%clk 0:02:25.2]} 25... Ra1# {[%clk 0:01:51.6]} 0-1